[Event "LTU-chT 2019"]
[Site "Lithuania"]
[Date "2019.03.30"]
[Round "4.4"]
[White "Muningis, Paulius"]
[Black "Brazdzionis, Andrius"]
[Result "0-1"]
[ECO "B20"]
[WhiteElo "2146"]
[BlackElo "2311"]
[Annotator "NA"]
[PlyCount "102"]
[EventDate "2019.01.26"]
[EventType "team-tourn"]
[EventCountry "LTU"]
[SourceTitle "playchess.com"]
[Source "ChessBase"]
[SourceQuality "1"]
[TimeControl "40/5400+30:1800+30"]

1. e4 {[%emt 0:05:42]} c5 {[%emt 0:00:00]} 2. c4 {[%emt 0:04:26]} Nc6 {[%emt 0:00:09]} 3. g3 {[%emt 0:02:57]} g6 {[%emt 0:00:40]} 4. Bg2 {[%emt 0:00:25]} Bg7 {[%emt 0:00:08]} 5. Ne2 {[%emt 0:01:12]} e6 {[%emt 0:00:08]} 6. Nbc3 {[%emt 0:00:41]} d6 {[%emt 0:00:39]} 7. d3 {[%emt 0:08:13]} Nge7 {[%emt 0:00:07]} 8. Be3 {[%emt 0:03:27]} Nd4 {[%emt 0:00:16]} 9. Qd2 {[%emt 0:03:30]} O-O {[%emt 0:01:59]} 10. O-O {[%emt 0:04:40]} Rb8 {[%emt 0:00:29]} 11. Rab1 {[%emt 0:11:10] A36: Symmetrical English vs ...g6: 4 Bg2 Bg7} (11. Bh6 Bxh6 12. Qxh6 Nxe2+ 13. Nxe2 b5 14. b3 Nc6 15. f4 Nd4 16. Nxd4 cxd4 17. g4 f5 18. exf5 exf5 {½-½ (18) Miezis,N (2547)-Leko,P (2720) Porto Carras 2011}) 11... b6 {[%emt 0:01:59]} 12. Bg5 {[%emt 0:07:31]} Bb7 {[%emt 0:05:03]} 13. b4 {[%emt 0:09:09]} Qd7 {[%emt 0:02:12]} 14. Nxd4 {[%emt 0:08:50]} cxd4 {[%emt 0:00:13]} 15. Ne2 {[%emt 0:00:57]} e5 $146 {[%emt 0:02:21]} ({Predecessor:} 15... Rfe8 16. Qb2 e5 17. b5 Qg4 {1-0 (82) Sunder,T-Kummle,T Germany 1990}) 16. Qb2 {[%emt 0:06:28]} f6 {[%emt 0:02:21]} 17. Bd2 {[%emt 0:00:18]} f5 {[%emt 0:00:05]} 18. f3 {[%emt 0:01:05]} fxe4 {[%emt 0:06:40]} 19. fxe4 {[%emt 0:00:16]} Qg4 {[%emt 0:00:18]} 20. Rxf8+ {[%emt 0:00:33]} Rxf8 {[%emt 0:00:08]} 21. Re1 {[%emt 0:00:38]} Bc8 {[%emt 0:03:55]} 22. Qa3 {[%emt 0:02:01]} Qd7 {[%emt 0:02:30]} 23. b5 {[%emt 0:01:08]} h6 {[%emt 0:01:52]} 24. Bb4 {[%emt 0:02:29]} Rd8 {[%emt 0:00:01]} 25. Rf1 {[%emt 0:00:40]} Qc7 {[%emt 0:00:36]} 26. h3 {[%emt 0:00:22]} Be6 {[%emt 0:00:08]} 27. Qc1 {[%emt 0:00:53]} Kh7 {[%emt 0:00:26]} 28. a4 {[%emt 0:00:23]} Qd7 {[%emt 0:02:27]} 29. Kh2 {[%emt 0:00:33]} a5 {[%emt 0:00:18]} 30. Bd2 {[%emt 0:01:09]} Rc8 {[%emt 0:00:34]} 31. Qe1 {[%emt 0:00:39]} Ng8 {[%emt 0:01:55]} 32. g4 {[%emt 0:01:37]} Qd8 {[%emt 0:00:55]} 33. g5 {[%emt 0:10:50]} hxg5 {[%emt 0:00:46]} 34. Bf3 {[%emt 0:00:13]} Bf6 {[%emt 0:05:16]} 35. Qg3 {[%emt 0:00:42]} Nh6 {[%emt 0:01:39]} 36. Rg1 {[%emt 0:00:41]} Nf7 {[%emt 0:01:06]} 37. Bg4 {[%emt 0:00:49]} Qd7 {[%emt 0:03:18]} 38. Bxe6 {[%emt 0:00:45]} Qxe6 {[%emt 0:00:01]} 39. h4 {[%emt 0:00:21]} Rh8 {[%emt 0:02:47]} 40. hxg5 {[%emt 0:01:04]} Kg7+ {[%emt 0:00:23]} 41. Kg2 {[%emt 0:30:07]} Bd8 {[%emt 0:30:12]} 42. Rh1 {[%emt 0:00:00]} Rxh1 {[%emt 0:00:00]} 43. Kxh1 {[%emt 0:00:00]} Qc8 {[%emt 0:00:00]} 44. Ng1 {[%emt 0:00:00]} Qc5 {[%emt 0:00:00]} 45. Kg2 {[%emt 0:00:00]} Qa3 {[%emt 0:00:00]} 46. Kf2 {[%emt 0:00:00]} Qxa4 {[%emt 0:00:00]} 47. Nf3 {[%emt 0:00:00]} Qc2 {[%emt 0:00:00]} 48. Ke2 {[%emt 0:00:00]} a4 {[%emt 0:00:00]} 49. Qg4 {[%emt 0:00:00]} a3 {[%emt 0:00:00]} 50. Qe6 {[%emt 0:00:00]} a2 {[%emt 0:00:00]} 51. Nh4 {[%emt 0:00:00]} a1=Q {[%emt 0:00:00]} 0-1

[Event "LTU-chT 2019"]
[Site "Lithuania"]
[Date "2019.03.30"]
[Round "4.5"]
[White "Setkauskas, Vaidas"]
[Black "Adomaitis, Edgaras"]
[Result "1-0"]
[ECO "B06"]
[WhiteElo "2183"]
[BlackElo "1889"]
[Annotator "NA"]
[PlyCount "83"]
[EventDate "2019.01.26"]
[EventType "team-tourn"]
[EventCountry "LTU"]
[SourceTitle "playchess.com"]
[Source "ChessBase"]
[SourceQuality "1"]
[TimeControl "40/5400+30:1800+30"]

1. e4 {[%emt 0:00:00]} d6 {[%emt 0:00:44]} 2. d4 {[%emt 0:00:30]} g6 {[%emt 0:00:36]} 3. Nc3 {[%emt 0:00:30]} Bg7 {[%emt 0:00:30]} 4. Be3 {[%emt 0:00:30]} c6 {[%emt 0:01:53]} 5. Qd2 {[%emt 0:00:52]} b5 {[%emt 0:03:28]} 6. Bd3 {[%emt 0:04:14]} Nd7 {[%emt 0:01:42]} 7. Nf3 {[%emt 0:05:23]} Nb6 {[%emt 0:06:12]} 8. b3 {[%emt 0:16:46]} Bd7 $146 {[%emt 0:07:07] B06: Modern Defence} ({Predecessor:} 8... Nf6 9. Bh6 O-O 10. e5 dxe5 11. dxe5 b4 12. Ne2 Bxh6 13. Qxh6 Ng4 14. Qh4 Qc7 15. Ng5 h6 16. e6 {0-1 (53) Kashlinskaya,A (2450)-Socko,M (2428) Wroclaw 2016}) 9. O-O {[%emt 0:01:57]} Nf6 {[%emt 0:04:24]} 10. h3 {[%emt 0:13:10]} O-O {[%emt 0:08:52]} 11. Rfe1 {[%emt 0:00:42]} Qc7 {[%emt 0:06:08]} 12. e5 {[%emt 0:11:07]} Nfd5 {[%emt 0:00:32] [#]} 13. Nxd5 $1 {[%emt 0:00:38]} Nxd5 {[%emt 0:00:35]} 14. Bh6 {[%emt 0:00:30]} b4 {[%emt 0:03:13]} 15. Re4 {[%emt 0:04:49]} f5 {[%emt 0:26:26]} 16. Rh4 {[%emt 0:08:49]} f4 {[%emt 0:01:13]} 17. Ng5 {[%emt 0:02:16]} ({Not} 17. Bxf4 Rxf4 18. Rxf4 Bh6 $16 {[%mdl 64] Pin}) 17... Bxh6 {[%emt 0:03:49]} 18. Rxh6 {[%emt 0:00:30]} Bf5 {[%emt 0:00:30]} 19. Nxh7 {[%emt 0:03:10]} Kg7 {[%emt 0:00:33]} 20. Nxf8 {[%emt 0:02:04]} Kxh6 {[%emt 0:00:30]} 21. Bxf5 {[%emt 0:00:30]} Rxf8 {[%emt 0:00:30]} 22. exd6 {[%emt 0:00:30]} Qxd6 {[%emt 0:00:37]} 23. Bg4 {[%emt 0:01:23]} Rf6 {[%emt 0:01:17]} 24. Re1 {[%emt 0:00:30]} Kg7 {[%emt 0:02:16]} 25. Qd3 {[%emt 0:02:09]} f3 {[%emt 0:02:03]} 26. g3 {[%emt 0:03:24]} ({Don't take} 26. Bxf3 $6 Nf4 $18) ({Much less strong is} 26. gxf3 $6 Qf4 $16) 26... Nc3 {[%emt 0:02:51]} 27. Bxf3 {[%emt 0:01:55]} Nxa2 {[%emt 0:01:08]} 28. Kg2 {[%emt 0:01:12]} Nc3 {[%emt 0:00:30]} 29. Re5 {[%emt 0:01:58]} Nb5 {[%emt 0:01:01]} 30. Re4 {[%emt 0:01:05]} Nc3 {[%emt 0:00:30]} 31. Rg4 {[%emt 0:00:30]} Qe6 {[%emt 0:04:19]} 32. h4 {[%emt 0:00:53]} a5 {[%emt 0:00:30]} 33. h5 {[%emt 0:01:10]} Kh6 {[%emt 0:00:43]} 34. Qd2+ {[%emt 0:01:32]} Kg7 {[%emt 0:00:30]} 35. Qg5 {[%emt 0:00:30]} Nb5 $18 {[%emt 0:01:09]} 36. Re4 {[%emt 0:05:44]} Qd6 {[%emt 0:00:53]} 37. Qe3 {[%emt 0:00:30]} e6 {[%emt 0:01:43]} 38. hxg6 {[%emt 0:00:30]} Rxg6 {[%emt 0:00:30]} 39. Bh5 {[%emt 0:00:30]} Rh6 {[%emt 0:01:01]} 40. Rg4+ {[%emt 0:02:35]} Kh7 {[%emt 0:00:30]} 41. Rh4 {[%emt 0:30:41]} Kg7 {[%emt 0:30:43]} 42. Qg5+ {[%emt 0:00:30]} 1-0

[Event "LTU-chT 2019"]
[Site "Lithuania"]
[Date "2019.03.30"]
[Round "4.8"]
[White "Tvarijonas, Tomas"]
[Black "Germanavicius, Sarunas"]
[Result "0-1"]
[ECO "B90"]
[WhiteElo "2248"]
[BlackElo "2352"]
[Annotator "ChessBase"]
[PlyCount "78"]
[EventDate "2019.01.26"]
[EventType "team-tourn"]
[EventCountry "LTU"]
[SourceTitle "playchess.com"]
[Source "ChessBase"]
[SourceQuality "1"]
[TimeControl "40/5400+30:1800+30"]

1. e4 {[%emt 0:00:00]} c5 {[%emt 0:01:00]} 2. Nf3 {[%emt 0:00:00]} d6 {[%emt 0:00:04]} 3. d4 {[%emt 0:00:00]} cxd4 {[%emt 0:00:14]} 4. Nxd4 {[%emt 0:00:00]} Nf6 {[%emt 0:00:05]} 5. Nc3 {[%emt 0:00:07]} a6 {[%emt 0:00:05]} 6. Be3 {[%emt 0:04:32]} e5 {[%emt 0:00:15]} 7. Nb3 {[%emt 0:00:24]} Be6 {[%emt 0:00:08]} 8. f3 {[%emt 0:00:20]} h5 {[%emt 0:00:16]} 9. Qd2 {[%emt 0:00:46]} Nbd7 {[%emt 0:00:27]} 10. O-O-O {[%emt 0:01:18]} Rc8 {[%emt 0:02:33]} 11. Kb1 {[%emt 0:05:11]} Qc7 {[%emt 0:04:31]} 12. Be2 {[%emt 0:08:33]} Be7 {[%emt 0:00:27]} 13. Bg5 {[%emt 0:17:42]} b5 {[%emt 0:19:41]} 14. Rc1 {[%emt 0:13:33]} Nb6 {[%emt 0:12:33]} 15. Bxf6 {[%emt 0:06:13]} Bxf6 {[%emt 0:07:34]} 16. Bxb5+ {[%emt 0:04:23]} axb5 {[%emt 0:00:32]} 17. Nxb5 {[%emt 0:00:03]} Qc6 {[%emt 0:05:28]} 18. Nxd6+ {[%emt 0:00:15]} Ke7 {[%emt 0:01:01]} 19. Nxc8+ {[%emt 0:00:36]} Rxc8 {[%emt 0:00:12]} 20. Qb4+ {[%emt 0:12:02]} Ke8 {[%emt 0:02:19]} 21. Na5 {[%emt 0:02:07]} Qc7 {[%emt 0:02:48]} 22. c4 {[%emt 0:03:04]} Be7 {[%emt 0:03:27]} 23. Qd2 {[%emt 0:04:30]} Rd8 {[%emt 0:02:52]} 24. Qe1 {[%emt 0:04:28]} Na4 {[%emt 0:04:55]} 25. Nb3 {[%emt 0:03:53]} Ra8 {[%emt 0:00:59]} 26. Rc2 {[%emt 0:01:11]} Qa7 {[%emt 0:08:59]} 27. Nc1 {[%emt 0:01:13]} Bc5 {[%emt 0:03:39]} 28. Qe2 {[%emt 0:02:57]} Bd4 {[%emt 0:01:20]} 29. Qd3 {[%emt 0:03:03]} Nc5 {[%emt 0:00:33]} 30. Qe2 {[%emt 0:00:51]} Nb3 {[%emt 0:05:10]} 31. a3 {[%emt 0:00:33]} Qa4 {[%emt 0:01:45]} 32. Rd1 {[%emt 0:00:44]} Nc5 {[%emt 0:01:48]} 33. h3 {[%emt 0:00:48]} Rb8 {[%emt 0:01:12]} 34. Ka2 {[%emt 0:00:37]} Na6 {[%emt 0:01:11]} 35. Kb1 {[%emt 0:01:02]} Qxa3 {[%emt 0:01:16]} 36. Rd3 {[%emt 0:00:26]} Qa4 {[%emt 0:00:12]} 37. Rxd4 {[%emt 0:00:28]} exd4 {[%emt 0:00:19]} 38. f4 {[%emt 0:00:14]} Nb4 {[%emt 0:00:23]} 39. Rd2 {[%emt 0:00:51]} Ra8 0-1

[Event "LTU-chT 2019"]
[Site "Lithuania"]
[Date "2019.03.30"]
[Round "4.9"]
[White "Sotsky, Alexander"]
[Black "Solys, Laimutis"]
[Result "1/2-1/2"]
[ECO "A45"]
[WhiteElo "2327"]
[BlackElo "2338"]
[Annotator "NA"]
[PlyCount "63"]
[EventDate "2019.01.26"]
[EventType "team-tourn"]
[EventCountry "LTU"]
[SourceTitle "playchess.com"]
[Source "ChessBase"]
[SourceQuality "1"]
[TimeControl "40/5400+30:1800+30"]

1. d4 {[%emt 0:00:00]} Nf6 {[%emt 0:00:49]} 2. Bg5 {[%emt 0:00:00]} Ne4 {[%emt 0:00:59]} 3. Bf4 {[%emt 0:00:10]} c5 {[%emt 0:00:42]} 4. f3 {[%emt 0:03:10]} Qa5+ {[%emt 0:00:24]} 5. c3 {[%emt 0:03:04]} Nf6 {[%emt 0:00:12]} 6. dxc5 {[%emt 0:10:00] A45: Trompowsky Attack} (6. Nd2 cxd4 7. Nb3 Qb6 8. Qxd4 Nc6 9. Qxb6 axb6 10. Nd4 Ra5 11. b4 Ra4 12. e4 Nxd4 13. cxd4 e6 14. Bb5 Rxb4 15. a4 Rxd4 16. Ne2 Rb4 17. Kd2 Bc5 18. Kc2 {½-½ (40) Romanov,E (2619)-Svidler,P (2760) Sochi 2018}) 6... Qxc5 {[%emt 0:01:12]} 7. e4 {[%emt 0:06:23]} d6 {[%emt 0:02:50]} 8. Nd2 {[%emt 0:06:19]} Qc7 $146 {[%emt 0:04:41]} ({Predecessor:} 8... Nc6 9. Nb3 Qb6 10. Qd2 e5 11. Be3 Qc7 12. Bb5 Be7 13. Ne2 O-O {1-0 (40) Reichel,J-Kyas,M (1942) playchess.com INT 2007}) 9. Qb3 {[%emt 0:04:01]} Nc6 {[%emt 0:03:23]} 10. Bc4 {[%emt 0:22:04]} e6 {[%emt 0:01:42]} 11. Nh3 {[%emt 0:11:18]} Be7 {[%emt 0:02:08]} 12. Nf2 {[%emt 0:01:02]} O-O {[%emt 0:00:37]} 13. Be2 {[%emt 0:01:56]} e5 {[%emt 0:05:20]} 14. Be3 {[%emt 0:03:10]} Be6 {[%emt 0:00:23]} 15. c4 {[%emt 0:01:29] [#]} b5 $1 16. Qxb5 {[%emt 0:04:25]} Rab8 {[%emt 0:14:08]} 17. Qa4 {[%emt 0:00:06]} Rxb2 {[%emt 0:01:09]} 18. Nd3 {[%emt 0:01:06]} Rb7 {[%emt 0:00:27]} 19. O-O {[%emt 0:01:18]} Nd7 {[%emt 0:05:58]} 20. a3 {[%emt 0:04:00]} Nc5 {[%emt 0:04:23]} 21. Qc2 {[%emt 0:00:19]} f5 {[%emt 0:02:45]} 22. Nxc5 {[%emt 0:08:08]} dxc5 {[%emt 0:00:08]} 23. exf5 {[%emt 0:00:11]} Bxf5 {[%emt 0:00:20]} 24. Bd3 {[%emt 0:00:24]} Bxd3 {[%emt 0:06:35]} 25. Qxd3 {[%emt 0:00:06]} Rd8 {[%emt 0:00:08]} 26. Qf5 {[%emt 0:06:36]} Qd7 {[%emt 0:04:20]} 27. Qxd7 {[%emt 0:00:32]} Rbxd7 {[%emt 0:00:07]} 28. Ne4 {[%emt 0:00:15]} Na5 {[%emt 0:00:19]} 29. Bxc5 {[%emt 0:01:14]} Nxc4 {[%emt 0:01:56]} 30. Rfc1 {[%emt 0:01:02]} Na5 {[%emt 0:01:01]} 31. Bxe7 {[%emt 0:00:15]} Rxe7 {[%emt 0:00:06]} 32. Rc2 $11 {[%emt 0:00:34]} 1/2-1/2

[Event "LTU-chT 2019"]
[Site "Lithuania"]
[Date "2019.03.30"]
[Round "4.10"]
[White "Miknevicius, Laurynas"]
[Black "Juksta, Karolis"]
[Result "1/2-1/2"]
[ECO "A40"]
[WhiteElo "2181"]
[BlackElo "2285"]
[Annotator "ChessBase"]
[PlyCount "66"]
[EventDate "2019.01.26"]
[EventType "team-tourn"]
[EventCountry "LTU"]
[SourceTitle "playchess.com"]
[Source "ChessBase"]
[SourceQuality "1"]
[TimeControl "40/5400+30:1800+30"]

1. d4 {[%emt 0:00:00]} e6 {[%emt 0:00:00]} 2. Nf3 {[%emt 0:00:00]} d5 {[%emt 0:03:20]} 3. c4 {[%emt 0:00:00]} a6 {[%emt 0:00:22]} 4. Nc3 {[%emt 0:04:00]} Nf6 {[%emt 0:00:12]} 5. cxd5 {[%emt 0:02:50]} exd5 {[%emt 0:00:05]} 6. Bg5 {[%emt 0:00:03]} Be6 {[%emt 0:00:26]} 7. e3 {[%emt 0:00:48]} Nbd7 {[%emt 0:01:10]} 8. Be2 {[%emt 0:01:27]} Bd6 {[%emt 0:04:34]} 9. O-O {[%emt 0:00:50]} O-O {[%emt 0:00:21]} 10. Rc1 {[%emt 0:00:29]} c6 {[%emt 0:07:15]} 11. Qc2 {[%emt 0:01:41]} Qc7 {[%emt 0:04:32]} 12. Bh4 {[%emt 0:00:38]} h6 {[%emt 0:04:02]} 13. Bg3 {[%emt 0:01:52]} Bxg3 {[%emt 0:02:11]} 14. hxg3 {[%emt 0:00:06]} Ne8 {[%emt 0:03:12]} 15. Bd3 {[%emt 0:02:53]} Nd6 {[%emt 0:00:54]} 16. Na4 {[%emt 0:02:50]} Rfc8 {[%emt 0:10:05]} 17. Nd2 {[%emt 0:11:38]} Qd8 {[%emt 0:13:22]} 18. Nb3 {[%emt 0:06:48]} b6 {[%emt 0:03:03]} 19. Qe2 {[%emt 0:01:15]} a5 {[%emt 0:01:18]} 20. Rc2 {[%emt 0:03:37]} Nf6 {[%emt 0:02:09]} 21. Ba6 {[%emt 0:15:25]} Rcb8 {[%emt 0:07:46]} 22. Rxc6 {[%emt 0:04:24]} Nc4 {[%emt 0:00:37]} 23. Bxc4 {[%emt 0:06:52]} dxc4 {[%emt 0:00:08]} 24. Rxe6 {[%emt 0:00:27]} fxe6 {[%emt 0:00:53]} 25. Qxc4 {[%emt 0:00:06]} Qd7 {[%emt 0:04:19]} 26. Nc3 {[%emt 0:00:42]} Rc8 {[%emt 0:01:06]} 27. Qd3 {[%emt 0:02:36]} Qc6 {[%emt 0:03:28]} 28. Nd2 {[%emt 0:02:11]} Nd5 {[%emt 0:04:35]} 29. Nde4 {[%emt 0:00:51]} Nxc3 {[%emt 0:02:25]} 30. bxc3 {[%emt 0:00:29]} Qd5 {[%emt 0:00:58]} 31. Qc2 {[%emt 0:01:24]} Qf5 {[%emt 0:04:33]} 32. f3 {[%emt 0:00:53]} Rc6 {[%emt 0:00:33]} 33. Rb1 {[%emt 0:05:18]} Rac8 {[%emt 0:00:22]} 1/2-1/2

[Event "LTU-chT 2019"]
[Site "Lithuania"]
[Date "2019.03.30"]
[Round "4.11"]
[White "Zilinskas, Vaidotas"]
[Black "Chocenka, Dmitrijus"]
[Result "0-1"]
[ECO "B21"]
[WhiteElo "2016"]
[BlackElo "2287"]
[Annotator "NA"]
[PlyCount "107"]
[EventDate "2019.01.26"]
[EventType "team-tourn"]
[EventCountry "LTU"]
[SourceTitle "playchess.com"]
[Source "ChessBase"]
[SourceQuality "1"]
[TimeControl "40/5400+30:1800+30"]

1. e4 {[%emt 0:00:00]} c5 {[%emt 0:00:00]} 2. d4 {[%emt 0:00:00]} cxd4 {[%emt 0:00:00]} 3. c3 {[%emt 0:00:00]} d3 {[%emt 0:00:00]} 4. c4 {[%emt 0:00:00]} d6 {[%emt 0:00:04]} 5. Bxd3 {[%emt 0:00:10]} Nf6 {[%emt 0:00:14]} 6. Nc3 {[%emt 0:00:13]} g6 {[%emt 0:00:08] B21: Sicilian: 2 f4 and Morra Gambit} 7. Be3 {[%emt 0:03:34]} (7. h3 Bg7 8. Nf3 O-O 9. O-O Nc6 10. Be3 b6 11. Rc1 Bb7 12. b3 Nd7 13. Bb1 a6 14. Nd5 {0-1 (47) Sameir,R (2048)-Salem,A (2642) Sharjah 2018}) 7... Bg7 {[%emt 0:01:35]} 8. f3 {[%emt 0:00:11]} O-O {[%emt 0:00:21]} 9. Qd2 {[%emt 0:00:07]} Nc6 {[%emt 0:02:48]} 10. Rd1 $146 {[%emt 0:04:01]} ({Predecessor:} 10. h4 Ne5 11. g4 h5 12. Be2 Be6 13. Nd5 Bxd5 14. exd5 hxg4 {0-1 (30) Jeffrey,J (1839)-Scott,H (1923) New York 2015}) 10... Be6 {[%emt 0:03:06]} 11. Nge2 {[%emt 0:03:14]} Nd7 {[%emt 0:07:27]} 12. O-O {[%emt 0:03:23]} Nde5 {[%emt 0:04:20]} 13. b3 {[%emt 0:00:16]} Nxd3 {[%emt 0:00:42]} 14. Qxd3 {[%emt 0:00:09]} a6 {[%emt 0:01:24]} 15. Na4 {[%emt 0:02:17]} b5 {[%emt 0:02:02]} 16. cxb5 {[%emt 0:02:24]} Ne5 {[%emt 0:00:26]} 17. Qd2 {[%emt 0:01:28]} axb5 {[%emt 0:00:11]} 18. Nac3 {[%emt 0:02:17]} b4 {[%emt 0:02:14]} 19. Na4 {[%emt 0:00:31]} Nc4 {[%emt 0:00:22]} 20. Qc1 {[%emt 0:07:37]} Rxa4 {[%emt 0:04:26]} 21. bxa4 {[%emt 0:00:26]} Bb2 {[%emt 0:00:04]} 22. Qb1 {[%emt 0:00:46]} Nxe3 {[%emt 0:00:10]} 23. Qxb2 {[%emt 0:00:16]} Nxf1 {[%emt 0:00:06]} 24. Kxf1 {[%emt 0:01:52]} Qa5 {[%emt 0:00:07]} 25. Rd4 {[%emt 0:01:20]} Rb8 {[%emt 0:00:56]} 26. Nf4 {[%emt 0:01:08]} Qxa4 {[%emt 0:04:21]} 27. Nd5 {[%emt 0:02:06]} (27. Nxe6 $17 {was necessary.} fxe6 28. Kf2) 27... Bxd5 $1 {[%emt 0:01:19]} 28. exd5 {[%emt 0:00:28] [#]} Qb5+ {[%emt 0:03:05]} (28... Rc8 $1 $19 {[%cal Rc8c2]} 29. Rd2 Rc3) 29. Kf2 {[%emt 0:01:26]} Qc5 {[%emt 0:00:53]} 30. Kg3 {[%emt 0:00:15]} Rb5 {[%emt 0:03:47]} 31. h4 {[%emt 0:05:57]} h5 {[%emt 0:00:50]} 32. Re4 {[%emt 0:00:31]} Qc3 {[%emt 0:01:32]} 33. Qe2 {[%emt 0:00:46]} Rxd5 {[%emt 0:00:33]} 34. Rxe7 {[%emt 0:00:15]} Re5 {[%emt 0:07:32]} 35. Rxe5 {[%emt 0:02:06]} dxe5 {[%emt 0:00:05]} (35... Qxe5+ $19 36. Qxe5 dxe5) 36. Qe4 {[%emt 0:02:05]} Kg7 {[%emt 0:00:07]} 37. Qd5 {[%emt 0:01:28]} (37. Qb7 $17) 37... Qe1+ {[%emt 0:02:16]} (37... Qd4 $19 38. Qc6 Qf4+ 39. Kh3 Qd2) 38. Kh3 {[%emt 0:00:17]} Qe3 {[%emt 0:00:07]} 39. Qc6 {[%emt 0:02:11]} ({White should play} 39. Qd6) 39... Qf4 {[%emt 0:00:55]} 40. Qd6 {[%emt 0:01:17]} Qd4 {[%emt 0:03:21]} 41. Qe7 {[%emt 0:32:21]} Qf4 {[%emt 0:31:38]} (41... Qd5 $17) 42. Qd6 {[%emt 0:00:10]} Kh7 {[%emt 0:02:04]} 43. Qe7 {[%emt 0:02:49] [#]} Qc4 $1 {[%emt 0:01:44]} 44. Qb7 {[%emt 0:01:28]} Kg7 {[%emt 0:00:55]} 45. Qb8 {[%emt 0:00:32]} Kf6 {[%emt 0:02:26]} ({Black should try} 45... Qd4 $17 46. Qc7 Kf6) 46. Qd8+ {[%emt 0:01:35]} Ke6 {[%emt 0:00:48]} 47. Qe8+ {[%emt 0:00:19]} (47. Kg3) 47... Kd6 {[%emt 0:00:11]} 48. Qb8+ {[%emt 0:01:57]} (48. Qd8+ $11) 48... Kd5 {[%emt 0:01:54]} (48... Ke7 $17 49. Qb7+ Kf6) 49. Qb7+ {[%emt 0:01:09]} Ke6 {[%emt 0:00:46]} 50. Qa8 {[%emt 0:03:40]} Kf5 {[%emt 0:01:26]} 51. Qa7 {[%emt 0:02:07]} Kf4 {[%emt 0:04:49]} 52. Qb6 $2 {[%emt 0:00:33] [#]} (52. Kh2 $17) 52... Qe6+ $1 {[%emt 0:00:14]} 53. Qxe6 $19 {[%emt 0:00:03]} fxe6 {[%emt 0:00:04]} 54. Kh2 0-1

[Event "LTU-chT 2019"]
[Site "Lithuania"]
[Date "2019.03.30"]
[Round "4.12"]
[White "Limontas, Martynas"]
[Black "Tamosaitis, Rimas"]
[Result "1-0"]
[ECO "A48"]
[WhiteElo "2283"]
[BlackElo "2090"]
[Annotator "NA"]
[PlyCount "67"]
[EventDate "2019.01.26"]
[EventType "team-tourn"]
[EventCountry "LTU"]
[SourceTitle "playchess.com"]
[Source "ChessBase"]
[SourceQuality "1"]
[TimeControl "40/5400+30:1800+30"]

1. d4 {[%emt 0:00:00]} Nf6 {[%emt 0:00:08]} 2. Nf3 {[%emt 0:00:03]} g6 {[%emt 0:00:44]} 3. Bg5 {[%emt 0:00:14]} Bg7 {[%emt 0:00:12]} 4. Nbd2 {[%emt 0:00:09]} h6 {[%emt 0:01:12]} 5. Bh4 {[%emt 0:00:15]} d6 {[%emt 0:00:22]} 6. e4 {[%emt 0:01:28]} g5 {[%emt 0:00:25]} 7. Bg3 {[%emt 0:00:07]} Nh5 {[%emt 0:00:37]} 8. c3 {[%emt 0:01:04]} Nxg3 {[%emt 0:00:25]} 9. hxg3 {[%emt 0:00:07]} c5 {[%emt 0:00:36] A48: 1 d4 Nf6 2 Nf3 g6: Torre, London and Colle Systems} 10. dxc5 {[%emt 0:01:02]} dxc5 {[%emt 0:00:07]} 11. Qb3 {[%emt 0:00:14]} (11. Bc4 Qb6 12. Rb1 Be6 13. O-O Nd7 14. Bd5 Bg4 15. Nc4 Qc7 16. Qb3 O-O-O 17. Na5 {1-0 (28) Carlsen,M (2850)-Guseinov,G (2634) Berlin 2015}) 11... Qb6 $146 {[%emt 0:04:07]} ({Predecessor:} 11... Qc7 $11 {keeps the balance.} 12. Bb5+ Nd7 13. Nf1 a6 14. Bc4 e6 15. Ne3 Qc6 16. O-O-O {0-1 (51) Peev,K (1960)-Cossin,S (2499) Skopje 2017}) 12. Qa3 {[%emt 0:02:18]} Be6 {[%emt 0:01:15]} 13. Bc4 {[%emt 0:01:33]} Nd7 {[%emt 0:00:37]} 14. O-O-O {[%emt 0:03:06]} a6 {[%emt 0:02:22]} 15. Rhe1 {[%emt 0:01:49]} Bxc4 {[%emt 0:03:58]} 16. Nxc4 {[%emt 0:00:07]} Qc7 {[%emt 0:00:14]} 17. e5 {[%emt 0:02:25]} O-O {[%emt 0:03:00]} 18. e6 {[%emt 0:09:44]} fxe6 {[%emt 0:00:57]} 19. Rxe6 {[%emt 0:00:07]} b5 {[%emt 0:00:10]} 20. Rxe7 {[%emt 0:00:29]} Rad8 {[%emt 0:02:17]} 21. Qxa6 {[%emt 0:04:39]} Rf6 {[%emt 0:11:04]} 22. Qxb5 {[%emt 0:00:27]} Rc6 {[%emt 0:00:41]} 23. Rdxd7 {[%emt 0:06:06]} Rxd7 {[%emt 0:00:18]} 24. Rxd7 {[%emt 0:00:03]} Qxd7 {[%emt 0:00:24]} 25. Nce5 {[%emt 0:00:07]} Bxe5 {[%emt 0:03:46]} 26. Nxe5 {[%emt 0:00:07]} Qe6 {[%emt 0:00:21]} 27. Nxc6 {[%emt 0:05:20]} Qe1+ {[%emt 0:01:47]} 28. Kc2 {[%emt 0:00:05]} Qxf2+ {[%emt 0:00:10]} 29. Kb3 {[%emt 0:00:08]} Qxg3 {[%emt 0:01:28]} 30. a4 {[%emt 0:02:26]} Qxg2 {[%emt 0:00:45]} 31. a5 {[%emt 0:00:06]} Kg7 {[%emt 0:00:11]} 32. a6 {[%emt 0:02:18]} Qd5+ {[%emt 0:00:24]} 33. c4 {[%emt 0:00:09]} Qd1+ {[%emt 0:00:36]} 34. Ka2 {[%emt 0:00:13]} 1-0